fUST/lending_fUST_20260603
["ID","MTS","AMOUNT","RATE_DAILY","PERIOD"]
[423817820,1780434643000,-526.19,0.00016438,2]
[423817818,1780434643000,-500.0,0.00016438,2]
[423817824,1780434643000,-500.0,0.00016438,2]
[423817822,1780434643000,-500.0,0.00016438,2]
[423817715,1780434643000,-500.0,0.00015068,2]
[423817807,1780434643000,-500.0,0.00016164,2]
[423817788,1780434643000,-562.14,0.00015616,2]
[423817803,1780434643000,-500.0,0.0001589,2]
[423817776,1780434643000,-500.0,0.00015616,2]
[423817713,1780434643000,-393.2,0.00015068,2]
[423817786,1780434643000,-2839.19,0.00015616,2]
[423817718,1780434643000,-500.0,0.00015068,2]
[423817722,1780434643000,-500.0,0.00015068,2]
[423817732,1780434643000,-165.220197,0.00015068,2]
[423817736,1780434643000,-500.0,0.00015342,2]
[423817724,1780434643000,-613.1,0.00015068,2]
[423817726,1780434643000,-2839.19,0.00015068,2]
[423817730,1780434643000,-500.0,0.00015068,2]
[423817740,1780434643000,-500.0,0.00015342,2]
[423817738,1780434643000,-264.7,0.00015342,2]
[423817734,1780434643000,-249.0,0.00015275,2]
[423817742,1780434643000,-500.0,0.00015342,2]
[423817744,1780434643000,-526.19,0.00015342,2]
[423817746,1780434643000,-500.0,0.00015342,2]
[423817728,1780434643000,-562.14,0.00015068,2]
[423817774,1780434643000,-526.19,0.00015616,2]
[423817750,1780434643000,-500.0,0.00015342,2]
[423817770,1780434643000,-334.4,0.00015616,2]
[423817768,1780434643000,-500.0,0.00015616,2]
[423817760,1780434643000,-2839.19,0.00015342,2]
[423817764,1780434643000,-500.0,0.00015342,2]
[423817761,1780434643000,-562.14,0.00015342,2]
[423817754,1780434643000,-500.0,0.00015342,2]
[423817766,1780434643000,-336.36059792,0.00015354,2]
[423817756,1780434643000,-400.25,0.00015342,2]
[423817748,1780434643000,-572.75,0.00015342,2]
[423817752,1780434643000,-500.0,0.00015342,2]
[423817757,1780434643000,-500.0,0.00015342,2]
[423817771,1780434643000,-500.0,0.00015616,2]
[423817921,1780434644000,-751.943,0.00017769,2]
[423817896,1780434644000,-500.0,0.00017534,2]
[423817911,1780434644000,-268.463,0.00017769,2]
[423817907,1780434644000,-562.14,0.00017534,2]
[423817906,1780434644000,-2839.19,0.00017534,2]
[423817900,1780434644000,-526.19,0.00017534,2]
[423817892,1780434644000,-218.37446035,0.00017498,2]
[423817915,1780434644000,-1415.0,0.00017769,2]
[423817898,1780434644000,-500.0,0.00017534,2]
[423817901,1780434644000,-500.0,0.00017534,2]
[423817894,1780434644000,-347.71103645,0.00017498,2]
[423817909,1780434644000,-500.0,0.00017534,2]
[423817904,1780434644000,-500.0,0.00017534,2]
[423817917,1780434644000,-3630.0,0.00017769,2]
[423817945,1780434644000,-204.35785192,0.00017848,2]
[423817919,1780434644000,-2206.0,0.00017769,2]
[423817933,1780434644000,-500.0,0.00017808,2]
[423817923,1780434644000,-185.341,0.00017769,2]
[423817927,1780434644000,-500.0,0.00017808,2]
[423817925,1780434644000,-444.0,0.00017769,2]
[423817929,1780434644000,-500.0,0.00017808,2]
[423817931,1780434644000,-526.19,0.00017808,2]
[423817935,1780434644000,-416.0,0.00017808,2]
[423817937,1780434644000,-2839.19,0.00017808,2]
[423817939,1780434644000,-562.14,0.00017808,2]
[423817941,1780434644000,-500.0,0.00017808,2]
[423817943,1780434644000,-436.74892071,0.00017848,2]
[423817890,1780434644000,-1894.02134421,0.00017412,15]
[423817913,1780434644000,-1836.0,0.00017769,2]
[423817888,1780434644000,-282.0,0.00017275,2]
[423817830,1780434644000,-562.14,0.00016438,2]
[423817884,1780434644000,-562.14,0.0001726,2]
[423817828,1780434644000,-2839.19,0.00016438,2]
[423817947,1780434644000,-500.0,0.00018082,2]
[423817831,1780434644000,-500.0,0.00016438,2]
[423817835,1780434644000,-160.0,0.00016667,2]
[423817833,1780434644000,-208.07,0.00016619,2]
[423817826,1780434644000,-239.55,0.00016438,2]
[423817839,1780434644000,-500.0,0.00016712,2]
[423817841,1780434644000,-500.0,0.00016712,2]
[423817837,1780434644000,-160.0,0.00016667,2]
[423817853,1780434644000,-500.0,0.00016712,2]
[423817854,1780434644000,-173.85551823,0.00016973,2]
[423817858,1780434644000,-500.0,0.00016986,2]
[423817856,1780434644000,-500.0,0.00016986,2]
[423817862,1780434644000,-500.0,0.00016986,2]
[423817886,1780434644000,-500.0,0.0001726,2]
[423817845,1780434644000,-500.0,0.00016712,2]
[423817846,1780434644000,-500.0,0.00016712,2]
[423817860,1780434644000,-526.19,0.00016986,2]
[423817864,1780434644000,-500.0,0.00016986,2]
[423817843,1780434644000,-526.19,0.00016712,2]
[423817850,1780434644000,-562.14,0.00016712,2]
[423817866,1780434644000,-2839.19,0.00016986,2]
[423817868,1780434644000,-562.14,0.00016986,2]
[423817870,1780434644000,-500.0,0.00016986,2]
[423817872,1780434644000,-500.0,0.0001726,2]
[423817874,1780434644000,-500.0,0.0001726,2]
[423817882,1780434644000,-2839.19,0.0001726,2]
[423817880,1780434644000,-500.0,0.0001726,2]
[423817876,1780434644000,-526.19,0.0001726,2]
[423817878,1780434644000,-500.0,0.0001726,2]
[423817849,1780434644000,-2839.19,0.00016712,2]
[423817949,1780434644000,-500.0,0.00018082,2]
[423817969,1780434644000,-2839.19,0.00018356,2]
[423817961,1780434644000,-245.327,0.00018188,2]
[423818009,1780434644000,-2839.19,0.00019178,2]
[423818012,1780434644000,-562.14,0.00019178,2]
[423818026,1780434644000,-562.14,0.00019452,2]
[423818029,1780434644000,-1454.72,0.00019452,2]
[423818033,1780434644000,-323.19481642,0.000196,2]
[423818035,1780434644000,-151.0,0.00019627,2]
[423818031,1780434644000,-300.0,0.00019479,2]
[423818047,1780434644000,-651.0,0.00019627,2]
[423818041,1780434644000,-151.0,0.00019627,2]
[423818043,1780434644000,-151.0,0.00019627,2]
[423818045,1780434644000,-180.78488929,0.00019627,2]
[423818049,1780434644000,-651.0,0.00019627,2]
[423818053,1780434644000,-651.0,0.00019627,2]
[423818051,1780434644000,-651.0,0.00019627,2]
[423818039,1780434644000,-151.0,0.00019627,2]
[423818037,1780434644000,-151.0,0.00019627,2]
[423818055,1780434644000,-651.0,0.00019627,2]
[423818057,1780434644000,-651.0,0.00019627,2]
[423818061,1780434644000,-556.19908529,0.00019642,2]
[423818059,1780434644000,-491.79527303,0.00019627,2]
[423817959,1780434644000,-493.24,0.00018082,2]
[423818063,1780434644000,-151.06,0.000197,2]
[423818074,1780434644000,-2055.5110124,0.00019726,2]
[423818071,1780434644000,-524.0,0.00019726,2]
[423818069,1780434644000,-48404.97338448,0.00019718,2]
[423818072,1780434644000,-526.19,0.00019726,2]
[423818078,1780434644000,-783.6789876,0.00019726,2]
[423818080,1780434644000,-562.14,0.00019726,2]
[423818082,1780434644000,-1454.72,0.00019726,2]
[423818021,1780434644000,-526.19,0.00019452,2]
[423818023,1780434644000,-2839.19,0.00019452,2]
[423818065,1780434644000,-714198.86101552,0.00019718,2]
[423818019,1780434644000,-500.0,0.00019452,2]
[423817951,1780434644000,-526.19,0.00018082,2]
[423817963,1780434644000,-500.0,0.00018356,2]
[423817953,1780434644000,-156.3,0.00018082,2]
[423817965,1780434644000,-500.0,0.00018356,2]
[423817955,1780434644000,-2839.19,0.00018082,2]
[423817957,1780434644000,-562.14,0.00018082,2]
[423817967,1780434644000,-526.19,0.00018356,2]
[423817973,1780434644000,-492.6,0.0001863,2]
[423817975,1780434644000,-500.0,0.0001863,2]
[423817971,1780434644000,-562.14,0.00018356,2]
[423818007,1780434644000,-526.19,0.00019178,2]
[423817978,1780434644000,-2839.19,0.0001863,2]
[423817992,1780434644000,-1373.4426681,0.00018836,2]
[423817986,1780434644000,-203.93851907,0.00018736,2]
[423817988,1780434644000,-543.688524,0.00018836,2]
[423817980,1780434644000,-562.14,0.0001863,2]
[423818015,1780434644000,-315.0,0.00019275,2]
[423818017,1780434644000,-210.5348369,0.00019331,2]
[423817982,1780434644000,-1454.72,0.0001863,2]
[423818006,1780434644000,-500.0,0.00019178,2]
[423818004,1780434644000,-300.0,0.00019178,2]
[423818002,1780434644000,-1454.72,0.00018904,2]
[423818013,1780434644000,-1454.72,0.00019178,2]
[423817998,1780434644000,-2839.19,0.00018904,2]
[423817996,1780434644000,-526.19,0.00018904,2]
[423817994,1780434644000,-500.0,0.00018904,2]
[423817990,1780434644000,-27433.3224739,0.00018836,2]
[423817984,1780434644000,-200.0,0.00018736,2]
[423817977,1780434644000,-526.19,0.0001863,2]
[423818000,1780434644000,-562.14,0.00018904,2]
[423818093,1780434645000,-5514.31215015,0.0002,2]
[423818084,1780434645000,-2246.52756214,0.00019757,2]
[423818088,1780434645000,-150.0,0.0002,2]
[423818090,1780434645000,-613577.0506799,0.0002,2]
[423818086,1780434645000,-25903.39024008,0.0002,2]
[423818128,1780434645000,-500.0,0.00014246,2]
[423818130,1780434645000,-500.0,0.00014246,2]
[423818124,1780434645000,-500.0,0.00013972,2]
[423818132,1780434645000,-500.0,0.0001452,2]
[423818118,1780434645000,-1632.63,0.00013553,2]
[423818140,1780434645000,-118384.05708672,0.0002,2]
[423818138,1780434645000,-500.0,0.00014794,2]
[423818136,1780434645000,-500.0,0.00014794,2]
[423818120,1780434645000,-3367.37,0.00013553,2]
[423818134,1780434645000,-500.0,0.0001452,2]
[423818126,1780434645000,-500.0,0.00013972,2]
[423818122,1780434645000,-500.0,0.00013698,2]
[423818214,1780434646000,-362.43817013,0.0002,2]
[423818190,1780434646000,-3844.9695544,0.0002,2]
[423818865,1780435021000,5000.0,0.00023418,30]
[423818869,1780435220000,-2527.28712288,8.596e-05,2]
[423818871,1780435348000,200.0,8e-05,7]
[423819024,1780435595000,5000.0,8.203e-05,2]
[423819025,1780435609000,5000.0,8.203e-05,2]
[423819026,1780435632000,5000.0,8.203e-05,2]
[423819028,1780435654000,5000.0,8.203e-05,2]
[423819029,1780435676000,5000.0,8.203e-05,2]
[423819030,1780435699000,5000.0,8.203e-05,2]
[423819031,1780435720000,5000.0,8.203e-05,2]
[423819032,1780435741000,5000.0,8.203e-05,2]
[423819162,1780435764000,5000.0,8.203e-05,2]
[423819163,1780435785000,5000.0,8.203e-05,2]
[423819164,1780435807000,5000.0,8.203e-05,2]
[423819165,1780435816000,4674.67026213,8.203e-05,2]
[423819226,1780435832000,-151.0,8.771e-05,2]
[423819223,1780435832000,-1039.69880055,8.683e-05,2]
[423819231,1780435832000,-304.45148901,9.574e-05,7]
[423819240,1780435832000,-160.566907,9.765e-05,2]
[423819238,1780435832000,-300.0,9.646e-05,2]
[423819242,1780435832000,-8702.5674228,9.783e-05,2]
[423819236,1780435832000,-300.0,9.646e-05,2]
[423819234,1780435832000,-300.0,9.646e-05,2]
[423819244,1780435832000,-433.14549635,0.0001,2]
[423819227,1780435832000,-202.96765932,9.042e-05,7]
[423819248,1780435832000,-183.0,0.00010596,2]
[423819229,1780435832000,-1200.0,9.573e-05,2]
[423819250,1780435832000,-337.0,0.00010611,2]
[423819246,1780435832000,-1680.0,0.00010531,2]
[423819259,1780435832000,-216.0,0.00012597,2]
[423819268,1780435832000,-10458.55243871,0.00013598,2]
[423819263,1780435832000,-71125.96031204,0.00013598,2]
[423819261,1780435832000,-1159.05326123,0.00013598,2]
[423819265,1780435832000,-360389.62226725,0.00013598,2]
[423819255,1780435832000,-1051.0,0.00011584,2]
[423819253,1780435832000,-250.0,0.0001102,2]
[423819251,1780435832000,-550.99414649,0.00010943,2]
[423819270,1780435832000,-598.6213911,0.00013598,2]
[423819257,1780435832000,-152.0,0.00012567,7]
[423819314,1780435838000,-500.0,0.00013698,2]
[423819306,1780435838000,-500.0,0.00013698,2]
[423819312,1780435838000,-500.0,0.00013698,2]
[423819308,1780435838000,-500.0,0.00013698,2]
[423819307,1780435838000,-500.0,0.00013698,2]
[423819299,1780435838000,-71506.57420293,0.00013598,2]
[423819302,1780435838000,-500.0,0.00013698,2]
[423819304,1780435838000,-500.0,0.00013698,2]
[423819300,1780435838000,-500.0,0.00013698,2]
[423819301,1780435838000,-500.0,0.00013698,2]
[423819311,1780435838000,-500.0,0.00013698,2]
[423819305,1780435838000,-500.0,0.00013698,2]
[423819309,1780435838000,-500.0,0.00013698,2]
[423819303,1780435838000,-500.0,0.00013698,2]
[423819310,1780435838000,-500.0,0.00013698,2]
[423819316,1780435838000,-500.0,0.00013698,2]
[423819326,1780435838000,-500.0,0.00013698,2]
[423819324,1780435838000,-500.0,0.00013698,2]
[423819317,1780435838000,-500.0,0.00013698,2]
[423819323,1780435838000,-548.89,0.00013698,2]
[423819319,1780435838000,-500.0,0.00013698,2]
[423819325,1780435838000,-500.0,0.00013698,2]
[423819322,1780435838000,-500.0,0.00013698,2]
[423819320,1780435838000,-500.0,0.00013698,2]
[423819327,1780435838000,-500.0,0.00013698,2]
[423819318,1780435838000,-500.0,0.00013698,2]
[423819315,1780435838000,-500.0,0.00013698,2]
[423819313,1780435838000,-500.0,0.00013698,2]
[423819321,1780435838000,-500.0,0.00013698,2]
[423819382,1780435839000,-500.0,0.00013698,2]
[423819370,1780435839000,-500.0,0.00013698,2]
[423819371,1780435839000,-500.0,0.00013698,2]
[423819364,1780435839000,-500.0,0.00013698,2]
[423819366,1780435839000,-526.32325692,0.00013698,2]
[423819361,1780435839000,-500.0,0.00013698,2]
[423819359,1780435839000,-500.0,0.00013698,2]
[423819362,1780435839000,-500.0,0.00013698,2]
[423819358,1780435839000,-500.0,0.00013698,2]
[423819369,1780435839000,-500.0,0.00013698,2]
[423819381,1780435839000,-500.0,0.00013698,2]
[423819363,1780435839000,-500.0,0.00013698,2]
[423819367,1780435839000,-500.0,0.00013698,2]
[423819373,1780435839000,-500.0,0.00013698,2]
[423819383,1780435839000,-500.0,0.00013698,2]
[423819374,1780435839000,-500.0,0.00013698,2]
[423819377,1780435839000,-500.0,0.00013698,2]
[423819375,1780435839000,-500.0,0.00013698,2]
[423819378,1780435839000,-500.0,0.00013698,2]
[423819380,1780435839000,-500.0,0.00013698,2]
[423819379,1780435839000,-500.0,0.00013698,2]
[423819384,1780435839000,-500.0,0.00013698,2]
[423819387,1780435839000,-500.0,0.00013698,2]
[423819396,1780435839000,-500.0,0.00013698,2]
[423819386,1780435839000,-500.0,0.00013698,2]
[423819385,1780435839000,-500.0,0.00013698,2]
[423819388,1780435839000,-500.0,0.00013698,2]
[423819365,1780435839000,-500.0,0.00013698,2]
[423819372,1780435839000,-500.0,0.00013698,2]
[423819360,1780435839000,-171.08537154,0.00013698,2]
[423819340,1780435839000,-500.0,0.00013698,2]
[423819357,1780435839000,-500.0,0.00013698,2]
[423819330,1780435839000,-500.0,0.00013698,2]
[423819328,1780435839000,-500.0,0.00013698,2]
[423819329,1780435839000,-500.0,0.00013698,2]
[423819331,1780435839000,-500.0,0.00013698,2]
[423819334,1780435839000,-500.0,0.00013698,2]
[423819335,1780435839000,-500.0,0.00013698,2]
[423819336,1780435839000,-500.0,0.00013698,2]
[423819333,1780435839000,-500.0,0.00013698,2]
[423819337,1780435839000,-500.0,0.00013698,2]
[423819338,1780435839000,-500.0,0.00013698,2]
[423819395,1780435839000,-500.0,0.00013698,2]
[423819339,1780435839000,-500.0,0.00013698,2]
[423819341,1780435839000,-500.0,0.00013698,2]
[423819332,1780435839000,-500.0,0.00013698,2]
[423819342,1780435839000,-500.0,0.00013698,2]
[423819344,1780435839000,-500.0,0.00013698,2]
[423819355,1780435839000,-500.0,0.00013698,2]
[423819343,1780435839000,-500.0,0.00013698,2]
[423819354,1780435839000,-500.0,0.00013698,2]
[423819345,1780435839000,-500.0,0.00013698,2]
[423819346,1780435839000,-500.0,0.00013698,2]
[423819347,1780435839000,-500.0,0.00013698,2]
[423819348,1780435839000,-500.0,0.00013698,2]
[423819349,1780435839000,-500.0,0.00013698,2]
[423819353,1780435839000,-500.0,0.00013698,2]
[423819351,1780435839000,-500.0,0.00013698,2]
[423819352,1780435839000,-500.0,0.00013698,2]
[423819350,1780435839000,-500.0,0.00013698,2]
[423819356,1780435839000,-500.0,0.00013698,2]
[423819368,1780435839000,-500.0,0.00013698,2]
[423819389,1780435839000,-500.0,0.00013698,2]
[423819376,1780435839000,-2129.77,0.00013698,2]
[423819391,1780435839000,-500.0,0.00013698,2]
[423819438,1780435839000,-500.0,0.00013972,2]
[423819437,1780435839000,-500.0,0.00013972,2]
[423819425,1780435839000,-500.0,0.00013972,2]
[423819429,1780435839000,-500.0,0.00013972,2]
[423819428,1780435839000,-500.0,0.00013972,2]
[423819427,1780435839000,-500.0,0.00013972,2]
[423819431,1780435839000,-500.0,0.00013972,2]
[423819430,1780435839000,-500.0,0.00013972,2]
[423819434,1780435839000,-500.0,0.00013972,2]
[423819435,1780435839000,-500.0,0.00013972,2]
[423819433,1780435839000,-500.0,0.00013972,2]
[423819432,1780435839000,-500.0,0.00013972,2]
[423819440,1780435839000,-500.0,0.00013972,2]
[423819450,1780435839000,-500.0,0.00013972,2]
[423819439,1780435839000,-500.0,0.00013972,2]
[423819441,1780435839000,-500.0,0.00013972,2]
[423819443,1780435839000,-500.0,0.00013972,2]
[423819444,1780435839000,-500.0,0.00013972,2]
[423819447,1780435839000,-500.0,0.00013972,2]
[423819451,1780435839000,-500.0,0.00013972,2]
[423819452,1780435839000,-500.0,0.00013972,2]
[423819442,1780435839000,-500.0,0.00013972,2]
[423819448,1780435839000,-500.0,0.00013972,2]
[423819445,1780435839000,-500.0,0.00013972,2]
[423819449,1780435839000,-500.0,0.00013972,2]
[423819453,1780435839000,-500.0,0.00013972,2]
[423819454,1780435839000,-500.0,0.00013972,2]
[423819456,1780435839000,-500.0,0.00013972,2]
[423819390,1780435839000,-500.0,0.00013698,2]
[423819436,1780435839000,-500.0,0.00013972,2]
[423819426,1780435839000,-500.0,0.00013972,2]
[423819455,1780435839000,-500.0,0.00013972,2]
[423819419,1780435839000,-500.0,0.00013972,2]
[423819418,1780435839000,-500.0,0.00013972,2]
[423819394,1780435839000,-500.0,0.00013698,2]
[423819393,1780435839000,-500.0,0.00013698,2]
[423819398,1780435839000,-500.0,0.00013698,2]
[423819404,1780435839000,-500.0,0.00013698,2]
[423819407,1780435839000,-500.0,0.00013698,2]
[423819410,1780435839000,-87687.78215031,0.000138,2]
[423819408,1780435839000,-378.663677,0.00013699,2]
[423819406,1780435839000,-500.0,0.00013698,2]
[423819405,1780435839000,-500.0,0.00013698,2]
[423819397,1780435839000,-500.0,0.00013698,2]
[423819400,1780435839000,-500.0,0.00013698,2]
[423819403,1780435839000,-500.0,0.00013698,2]
[423819399,1780435839000,-500.0,0.00013698,2]
[423819392,1780435839000,-500.0,0.00013698,2]
[423819409,1780435839000,-1000.0,0.00013699,2]
[423819402,1780435839000,-500.0,0.00013698,2]
[423819417,1780435839000,-500.0,0.00013972,2]
[423819416,1780435839000,-500.0,0.00013972,2]
[423819424,1780435839000,-500.0,0.00013972,2]
[423819420,1780435839000,-495.25523106,0.00013972,2]
[423819423,1780435839000,-500.0,0.00013972,2]
[423819412,1780435839000,-500.0,0.00013972,2]
[423819415,1780435839000,-500.0,0.00013972,2]
[423819413,1780435839000,-500.0,0.00013972,2]
[423819422,1780435839000,-500.0,0.00013972,2]
[423819414,1780435839000,-500.0,0.00013972,2]
[423819411,1780435839000,-5139.6681136,0.00013899,2]
[423819401,1780435839000,-500.0,0.00013698,2]
[423819421,1780435839000,-500.0,0.00013972,2]
[423819505,1780435840000,-500.0,0.00014246,2]
[423819512,1780435840000,-500.0,0.00014246,2]
[423819502,1780435840000,-500.0,0.00014246,2]
[423819500,1780435840000,-500.0,0.00013972,2]
[423819494,1780435840000,-500.0,0.00013972,2]
[423819497,1780435840000,-500.0,0.00013972,2]
[423819496,1780435840000,-500.0,0.00013972,2]
[423819498,1780435840000,-500.0,0.00013972,2]
[423819495,1780435840000,-500.0,0.00013972,2]
[423819491,1780435840000,-500.0,0.00013972,2]
[423819499,1780435840000,-500.0,0.00013972,2]
[423819493,1780435840000,-500.0,0.00013972,2]
[423819501,1780435840000,-500.0,0.00013972,2]
[423819507,1780435840000,-500.0,0.00014246,2]
[423819508,1780435840000,-500.0,0.00014246,2]
[423819511,1780435840000,-500.0,0.00014246,2]
[423819503,1780435840000,-500.0,0.00014246,2]
[423819509,1780435840000,-500.0,0.00014246,2]
[423819506,1780435840000,-500.0,0.00014246,2]
[423819510,1780435840000,-500.0,0.00014246,2]
[423819513,1780435840000,-500.0,0.00014246,2]
[423819516,1780435840000,-500.0,0.00014246,2]
[423819524,1780435840000,-500.0,0.00014246,2]
[423819523,1780435840000,-500.0,0.00014246,2]
[423819518,1780435840000,-500.0,0.00014246,2]
[423819514,1780435840000,-500.0,0.00014246,2]
[423819492,1780435840000,-500.0,0.00013972,2]
[423819520,1780435840000,-500.0,0.00014246,2]
[423819504,1780435840000,-500.0,0.00014246,2]
[423819490,1780435840000,-500.0,0.00013972,2]
[423819475,1780435840000,-500.0,0.00013972,2]
[423819488,1780435840000,-500.0,0.00013972,2]
[423819522,1780435840000,-500.0,0.00014246,2]
[423819457,1780435840000,-500.0,0.00013972,2]
[423819459,1780435840000,-500.0,0.00013972,2]
[423819458,1780435840000,-500.0,0.00013972,2]
[423819460,1780435840000,-500.0,0.00013972,2]
[423819462,1780435840000,-500.0,0.00013972,2]
[423819467,1780435840000,-500.0,0.00013972,2]
[423819468,1780435840000,-500.0,0.00013972,2]
[423819461,1780435840000,-500.0,0.00013972,2]
[423819474,1780435840000,-2129.77,0.00013972,2]
[423819464,1780435840000,-500.0,0.00013972,2]
[423819470,1780435840000,-500.0,0.00013972,2]
[423819469,1780435840000,-500.0,0.00013972,2]
[423819466,1780435840000,-500.0,0.00013972,2]
[423819472,1780435840000,-500.0,0.00013972,2]
[423819471,1780435840000,-500.0,0.00013972,2]
[423819473,1780435840000,-500.0,0.00013972,2]
[423819477,1780435840000,-500.0,0.00013972,2]
[423819487,1780435840000,-500.0,0.00013972,2]
[423819479,1780435840000,-500.0,0.00013972,2]
[423819476,1780435840000,-500.0,0.00013972,2]
[423819482,1780435840000,-500.0,0.00013972,2]
[423819481,1780435840000,-500.0,0.00013972,2]
[423819480,1780435840000,-500.0,0.00013972,2]
[423819478,1780435840000,-500.0,0.00013972,2]
[423819484,1780435840000,-500.0,0.00013972,2]
[423819486,1780435840000,-500.0,0.00013972,2]
[423819483,1780435840000,-500.0,0.00013972,2]
[423819485,1780435840000,-500.0,0.00013972,2]
[423819489,1780435840000,-500.0,0.00013972,2]
[423819525,1780435840000,-500.0,0.00014246,2]
[423819576,1780435840000,-500.0,0.00014246,2]
[423819515,1780435840000,-500.0,0.00014246,2]
[423819557,1780435840000,-500.0,0.00014246,2]
[423819556,1780435840000,-500.0,0.00014246,2]
[423819559,1780435840000,-500.0,0.00014246,2]
[423819558,1780435840000,-500.0,0.00014246,2]
[423819560,1780435840000,-500.0,0.00014246,2]
[423819562,1780435840000,-500.0,0.00014246,2]
[423819561,1780435840000,-500.0,0.00014246,2]
[423819563,1780435840000,-500.0,0.00014246,2]
[423819564,1780435840000,-500.0,0.00014246,2]
[423819567,1780435840000,-500.0,0.00014246,2]
[423819569,1780435840000,-500.0,0.00014246,2]
[423819571,1780435840000,-500.0,0.00014246,2]
[423819570,1780435840000,-500.0,0.00014246,2]
[423819579,1780435840000,-500.0,0.00014246,2]
[423819574,1780435840000,-500.0,0.00014246,2]
[423819587,1780435840000,-500.0,0.0001452,2]
[423819578,1780435840000,-500.0,0.00014246,2]
[423819580,1780435840000,-500.0,0.0001452,2]
[423819572,1780435840000,-500.0,0.00014246,2]
[423819575,1780435840000,-500.0,0.00014246,2]
[423819573,1780435840000,-500.0,0.00014246,2]
[423819577,1780435840000,-500.0,0.00014246,2]
[423819582,1780435840000,-500.0,0.0001452,2]
[423819583,1780435840000,-500.0,0.0001452,2]
[423819581,1780435840000,-500.0,0.0001452,2]
[423819584,1780435840000,-640.01,0.0001452,2]
[423819586,1780435840000,-500.0,0.0001452,2]
[423819585,1780435840000,-500.0,0.0001452,2]
[423819519,1780435840000,-500.0,0.00014246,2]
[423819565,1780435840000,-500.0,0.00014246,2]
[423819554,1780435840000,-500.0,0.00014246,2]
[423819568,1780435840000,-500.0,0.00014246,2]
[423819555,1780435840000,-500.0,0.00014246,2]
[423819517,1780435840000,-500.0,0.00014246,2]
[423819566,1780435840000,-500.0,0.00014246,2]
[423819521,1780435840000,-500.0,0.00014246,2]
[423819527,1780435840000,-500.0,0.00014246,2]
[423819537,1780435840000,-500.0,0.00014246,2]
[423819539,1780435840000,-500.0,0.00014246,2]
[423819526,1780435840000,-500.0,0.00014246,2]
[423819538,1780435840000,-500.0,0.00014246,2]
[423819529,1780435840000,-500.0,0.00014246,2]
[423819531,1780435840000,-500.0,0.00014246,2]
[423819533,1780435840000,-500.0,0.00014246,2]
[423819532,1780435840000,-500.0,0.00014246,2]
[423819530,1780435840000,-500.0,0.00014246,2]
[423819536,1780435840000,-500.0,0.00014246,2]
[423819534,1780435840000,-500.0,0.00014246,2]
[423819528,1780435840000,-500.0,0.00014246,2]
[423819549,1780435840000,-500.0,0.00014246,2]
[423819550,1780435840000,-500.0,0.00014246,2]
[423819535,1780435840000,-500.0,0.00014246,2]